[Event "Titled Tuesday Blitz March 22 Late 2022"]
[White "Gokerkan, Cem Kaan"]
[Black "Ozates, Tuna"]
[WhiteFideId "6336760"]
[BlackFideId "6354521"]
[WhiteElo "2382"]
[BlackElo "1887"]
[Result "1-0"]
[Round "04"]
[TimeControl "180+1"]
[Date "2022.03.22"]
[WhiteClock "0:00:15"]
[BlackClock "0:00:10"]

1. c4 {[%clk 0:02:56]}  c5 {[%clk 0:02:56]} 2. Nf3 {[%clk 0:02:54]}  Nc6 {[%clk 0:02:54]} 3. e3 {[%clk 0:02:52]}  Nf6 {[%clk 0:02:52]} 4. d4 {[%clk 0:02:51]}  cxd4 {[%clk 0:02:53]} 5. exd4 {[%clk 0:02:51]}  d5 {[%clk 0:02:54]} 6. Nc3 {[%clk 0:02:52]}  Bg4 {[%clk 0:02:53]} 7. Be2 {[%clk 0:02:31]}  e6 {[%clk 0:02:47]} 8. h3 {[%clk 0:02:26]}  Bh5 {[%clk 0:02:42]} 9. O-O {[%clk 0:02:25]}  Be7 {[%clk 0:02:41]} 10. c5 {[%clk 0:02:23]}  Ne4 {[%clk 0:02:36]} 11. Be3 {[%clk 0:02:18]}  Bf6 {[%clk 0:02:35]} 12. Nxe4 {[%clk 0:02:07]}  dxe4 {[%clk 0:02:35]} 13. Nd2 {[%clk 0:02:08]}  Bxe2 {[%clk 0:02:32]} 14. Qxe2 {[%clk 0:02:09]}  Bxd4 {[%clk 0:02:20]} 15. Nxe4 {[%clk 0:02:07]}  O-O {[%clk 0:02:14]} 16. Rfd1 {[%clk 0:01:56]}  e5 {[%clk 0:02:14]} 17. Nd6 {[%clk 0:01:40]}  Rb8 {[%clk 0:02:01]} 18. Bxd4 {[%clk 0:01:35]}  exd4 {[%clk 0:01:58]} 19. Rab1 {[%clk 0:01:19]}  b6 {[%clk 0:01:40]} 20. b4 {[%clk 0:01:15]}  bxc5 {[%clk 0:01:40]} 21. bxc5 {[%clk 0:01:16]}  Rxb1 {[%clk 0:01:33]} 22. Rxb1 {[%clk 0:01:17]}  Qg5 {[%clk 0:01:29]} 23. Qc4 {[%clk 0:01:06]}  Ne5 {[%clk 0:01:24]} 24. Qd5 {[%clk 0:01:03]}  Qf6 {[%clk 0:00:54]} 25. c6 {[%clk 0:00:47]}  Nf3+ {[%clk 0:00:35]} 26. Kh1 {[%clk 0:00:27]}  Nd2 {[%clk 0:00:31]} 27. Rd1 {[%clk 0:00:24]}  Qxf2 {[%clk 0:00:28]} 28. c7 {[%clk 0:00:24]}  Qe2 {[%clk 0:00:10]} 29. Rxd2 {[%clk 0:00:14]}  Qxd2 {[%clk 0:00:11]} 30. Qxf7+ {[%clk 0:00:13]}  Rxf7 {[%clk 0:00:09]} 31. c8=Q+ {[%clk 0:00:13]}  Rf8 {[%clk 0:00:10]} 32. Qe6+ {[%clk 0:00:14]}  Kh8 {[%clk 0:00:10]} 33. Nf7+ {[%clk 0:00:15]} 1-0


[Site "https://www.chess.com"]

[Event "Titled Tuesday Blitz March 22 Late 2022"]
[White "Grigorov, Grigor"]
[Black "Sharafiev, Azat"]
[WhiteFideId "2907313"]
[BlackFideId "4186214"]
[WhiteElo "2510"]
[BlackElo "2299"]
[Result "0-1"]
[Round "04"]
[TimeControl "180+1"]
[Date "2022.03.22"]
[WhiteClock "0:00:02"]
[BlackClock "0:00:16"]

1. d4 {[%clk 0:03:00]}  Nf6 {[%clk 0:02:58]} 2. Nf3 {[%clk 0:02:55]}  g6 {[%clk 0:02:54]} 3. Bg5 {[%clk 0:02:55]}  Bg7 {[%clk 0:02:53]} 4. Nbd2 {[%clk 0:02:54]}  d5 {[%clk 0:02:54]} 5. e3 {[%clk 0:02:54]}  c5 {[%clk 0:02:52]} 6. Be2 {[%clk 0:02:54]}  b6 {[%clk 0:02:51]} 7. O-O {[%clk 0:02:53]}  O-O {[%clk 0:02:51]} 8. c3 {[%clk 0:02:53]}  Ba6 {[%clk 0:02:51]} 9. b4 {[%clk 0:02:46]}  Bxe2 {[%clk 0:02:48]} 10. Qxe2 {[%clk 0:02:46]}  Ne4 {[%clk 0:02:47]} 11. Nxe4 {[%clk 0:02:46]}  dxe4 {[%clk 0:02:47]} 12. Nd2 {[%clk 0:02:46]}  cxb4 {[%clk 0:02:42]} 13. cxb4 {[%clk 0:02:45]}  h6 {[%clk 0:02:40]} 14. Bh4 {[%clk 0:02:42]}  f5 {[%clk 0:02:37]} 15. Qc4+ {[%clk 0:02:33]}  Kh7 {[%clk 0:02:36]} 16. Bg3 {[%clk 0:02:26]}  e5 {[%clk 0:02:30]} 17. Bxe5 {[%clk 0:02:01]}  Bxe5 {[%clk 0:02:30]} 18. dxe5 {[%clk 0:02:02]}  Qxd2 {[%clk 0:01:51]} 19. Rad1 {[%clk 0:01:50]}  Qb2 {[%clk 0:01:49]} 20. Qc7+ {[%clk 0:01:49]}  Kg8 {[%clk 0:01:48]} 21. Qb7 {[%clk 0:01:47]}  Na6 {[%clk 0:01:43]} 22. Qxa6 {[%clk 0:01:37]}  Qxe5 {[%clk 0:01:44]} 23. Qc4+ {[%clk 0:01:36]}  Rf7 {[%clk 0:01:39]} 24. Qc6 {[%clk 0:01:35]}  Qe8 {[%clk 0:01:34]} 25. Qxg6+ {[%clk 0:01:34]}  Rg7 {[%clk 0:01:35]} 26. Qxf5 {[%clk 0:01:31]}  Rg5 {[%clk 0:01:25]} 27. Qh3 {[%clk 0:01:21]}  Rh5 {[%clk 0:01:18]} 28. Qg3+ {[%clk 0:01:10]}  Kh8 {[%clk 0:01:19]} 29. Rd4 {[%clk 0:01:03]}  Qe6 {[%clk 0:01:16]} 30. Rfd1 {[%clk 0:00:55]}  Rg8 {[%clk 0:01:16]} 31. Rd8 {[%clk 0:00:53]}  Qxa2 {[%clk 0:01:13]} 32. Rxg8+ {[%clk 0:00:49]}  Qxg8 {[%clk 0:01:14]} 33. Qc7 {[%clk 0:00:21]}  Rd5 {[%clk 0:01:13]} 34. Rxd5 {[%clk 0:00:20]}  Qxd5 {[%clk 0:01:14]} 35. Qb8+ {[%clk 0:00:21]}  Kg7 {[%clk 0:01:14]} 36. Qxa7+ {[%clk 0:00:21]}  Kf8 {[%clk 0:01:12]} 37. Qb8+ {[%clk 0:00:20]}  Ke7 {[%clk 0:01:10]} 38. h3 {[%clk 0:00:20]}  b5 {[%clk 0:01:07]} 39. Kh2 {[%clk 0:00:18]}  Qc4 {[%clk 0:01:04]} 40. Qe5+ {[%clk 0:00:17]}  Kd7 {[%clk 0:01:00]} 41. Qb2 {[%clk 0:00:17]}  Kc6 {[%clk 0:00:57]} 42. Qd2 {[%clk 0:00:16]}  Qd3 {[%clk 0:00:56]} 43. Qc1+ {[%clk 0:00:15]}  Qc4 {[%clk 0:00:55]} 44. Qb2 {[%clk 0:00:15]}  Kd5 {[%clk 0:00:51]} 45. Kg3 {[%clk 0:00:15]}  Qc7+ {[%clk 0:00:51]} 46. Kg4 {[%clk 0:00:11]}  Qc8+ {[%clk 0:00:50]} 47. Kh5 {[%clk 0:00:10]}  Qf5+ {[%clk 0:00:33]} 48. Kxh6 {[%clk 0:00:10]}  Kc4 {[%clk 0:00:33]} 49. Qd4+ {[%clk 0:00:09]}  Kb3 {[%clk 0:00:33]} 50. g4 {[%clk 0:00:04]}  Qf3 {[%clk 0:00:28]} 51. g5 {[%clk 0:00:03]}  Qxh3+ {[%clk 0:00:28]} 52. Kg7 {[%clk 0:00:04]}  Qe6 {[%clk 0:00:19]} 53. g6 {[%clk 0:00:04]}  Qc4 {[%clk 0:00:20]} 54. Qd6 {[%clk 0:00:02]}  Qc2 {[%clk 0:00:16]} 0-1


[Site "https://www.chess.com"]

[Event "Titled Tuesday Blitz March 22 Late 2022"]
[White "Gulecyuz, Deniz"]
[Black "Saveliev, Alexei"]
[WhiteFideId "30921341"]
[BlackFideId "24128546"]
[WhiteElo "1923"]
[BlackElo "2281"]
[Result "0-1"]
[Round "04"]
[TimeControl "180+1"]
[Date "2022.03.22"]
[WhiteClock "0:00:13"]
[BlackClock "0:00:05"]

1. e4 {[%clk 0:02:57]}  g6 {[%clk 0:02:48]} 2. d4 {[%clk 0:02:57]}  Bg7 {[%clk 0:02:48]} 3. Bc4 {[%clk 0:02:54]}  d6 {[%clk 0:02:48]} 4. Bf4 {[%clk 0:02:45]}  Nc6 {[%clk 0:02:47]} 5. c3 {[%clk 0:02:45]}  Nf6 {[%clk 0:02:46]} 6. Nd2 {[%clk 0:02:45]}  O-O {[%clk 0:02:46]} 7. Bb3 {[%clk 0:02:44]}  e5 {[%clk 0:02:45]} 8. Be3 {[%clk 0:02:41]}  exd4 {[%clk 0:02:38]} 9. cxd4 {[%clk 0:02:40]}  Ng4 {[%clk 0:02:38]} 10. Ngf3 {[%clk 0:02:33]}  Nxe3 {[%clk 0:02:36]} 11. fxe3 {[%clk 0:02:33]}  Na5 {[%clk 0:02:19]} 12. Bc2 {[%clk 0:02:25]}  c5 {[%clk 0:02:15]} 13. O-O {[%clk 0:02:22]}  Nc6 {[%clk 0:02:13]} 14. Nc4 {[%clk 0:02:17]}  b5 {[%clk 0:02:08]} 15. Na3 {[%clk 0:02:09]}  b4 {[%clk 0:01:51]} 16. Nc4 {[%clk 0:02:03]}  Ba6 {[%clk 0:01:51]} 17. Bb3 {[%clk 0:01:58]}  Na5 {[%clk 0:01:27]} 18. Rc1 {[%clk 0:01:18]}  Nxb3 {[%clk 0:01:26]} 19. axb3 {[%clk 0:01:17]}  Qe7 {[%clk 0:01:24]} 20. Qc2 {[%clk 0:01:14]}  Rac8 {[%clk 0:01:20]} 21. Rfd1 {[%clk 0:00:53]}  Bh6 {[%clk 0:01:02]} 22. Qd3 {[%clk 0:00:47]}  Rfe8 {[%clk 0:00:59]} 23. e5 {[%clk 0:00:43]}  d5 {[%clk 0:00:44]} 24. Ra1 {[%clk 0:00:31]}  dxc4 {[%clk 0:00:42]} 25. bxc4 {[%clk 0:00:31]}  cxd4 {[%clk 0:00:10]} 26. Rxa6 {[%clk 0:00:25]}  Bxe3+ {[%clk 0:00:10]} 27. Kh1 {[%clk 0:00:25]}  Rc7 {[%clk 0:00:10]} 28. b3 {[%clk 0:00:17]}  Kg7 {[%clk 0:00:10]} 29. Rda1 {[%clk 0:00:14]}  Rd8 {[%clk 0:00:10]} 30. R1a4 {[%clk 0:00:12]}  Rcd7 {[%clk 0:00:09]} 31. h3 {[%clk 0:00:13]}  h5 {[%clk 0:00:08]} 32. Rc6 {[%clk 0:00:12]}  Rc7 {[%clk 0:00:07]} 33. Raa6 {[%clk 0:00:13]}  Rxc6 {[%clk 0:00:07]} 34. Rxc6 {[%clk 0:00:13]}  Qb7 {[%clk 0:00:08]} 35. Rc5 {[%clk 0:00:12]}  Qa6 {[%clk 0:00:06]} 36. Rd5 {[%clk 0:00:13]}  Rxd5 {[%clk 0:00:05]} 0-1


[Site "https://www.chess.com"]

[Event "Titled Tuesday Blitz March 22 Late 2022"]
[White "Hnydiuk, Aleksander"]
[Black "Thavandiran, Shiyam"]
[WhiteFideId "1109057"]
[BlackFideId "2605058"]
[WhiteElo "2374"]
[BlackElo "2357"]
[Result "0-1"]
[Round "04"]
[TimeControl "180+1"]
[Date "2022.03.22"]
[WhiteClock "0:00:42"]
[BlackClock "0:00:28"]

1. Nf3 {[%clk 0:03:00]}  Nf6 {[%clk 0:02:59]} 2. c4 {[%clk 0:03:00]}  c5 {[%clk 0:02:58]} 3. g3 {[%clk 0:02:59]}  e6 {[%clk 0:02:58]} 4. Bg2 {[%clk 0:02:59]}  a6 {[%clk 0:02:59]} 5. O-O {[%clk 0:02:52]}  Qc7 {[%clk 0:02:59]} 6. Nc3 {[%clk 0:02:51]}  Be7 {[%clk 0:02:56]} 7. b3 {[%clk 0:02:45]}  b6 {[%clk 0:02:56]} 8. d4 {[%clk 0:02:42]}  cxd4 {[%clk 0:02:56]} 9. Nxd4 {[%clk 0:02:42]}  Bb7 {[%clk 0:02:56]} 10. e4 {[%clk 0:02:33]}  d6 {[%clk 0:02:55]} 11. Be3 {[%clk 0:02:27]}  Nbd7 {[%clk 0:02:54]} 12. Rc1 {[%clk 0:02:27]}  Rc8 {[%clk 0:02:53]} 13. f4 {[%clk 0:02:26]}  O-O {[%clk 0:02:52]} 14. g4 {[%clk 0:02:25]}  Nc5 {[%clk 0:02:47]} 15. Qc2 {[%clk 0:02:24]}  Nxg4 {[%clk 0:02:46]} 16. Bd2 {[%clk 0:02:10]}  Rfe8 {[%clk 0:02:06]} 17. Bf3 {[%clk 0:01:37]}  Nf6 {[%clk 0:02:03]} 18. Be3 {[%clk 0:01:33]}  Bf8 {[%clk 0:01:58]} 19. Qg2 {[%clk 0:01:16]}  Kh8 {[%clk 0:01:20]} 20. Kh1 {[%clk 0:01:16]}  e5 {[%clk 0:01:03]} 21. fxe5 {[%clk 0:01:06]}  Rxe5 {[%clk 0:00:49]} 22. Bf4 {[%clk 0:00:57]}  Ree8 {[%clk 0:00:38]} 23. Nd5 {[%clk 0:00:49]}  Bxd5 {[%clk 0:00:31]} 24. exd5 {[%clk 0:00:42]}  Nd3 {[%clk 0:00:28]} 0-1


[Site "https://www.chess.com"]

[Event "Titled Tuesday Blitz March 22 Late 2022"]
[White "Ibarra Jerez, Jose Carlos"]
[Black "Niemann, Hans Moke"]
[WhiteFideId "2226332"]
[BlackFideId "2093596"]
[WhiteElo "2626"]
[BlackElo "2632"]
[Result "1-0"]
[Round "04"]
[TimeControl "180+1"]
[Date "2022.03.22"]
[WhiteClock "0:00:11"]
[BlackClock "0:00:44"]

1. e4 {[%clk 0:03:00]}  e6 {[%clk 0:02:55]} 2. d4 {[%clk 0:03:00]}  d5 {[%clk 0:02:56]} 3. Nc3 {[%clk 0:03:00]}  Nf6 {[%clk 0:02:31]} 4. Bg5 {[%clk 0:02:58]}  dxe4 {[%clk 0:02:29]} 5. Nxe4 {[%clk 0:02:57]}  Be7 {[%clk 0:02:29]} 6. Bxf6 {[%clk 0:02:57]}  gxf6 {[%clk 0:02:30]} 7. Nf3 {[%clk 0:02:56]}  f5 {[%clk 0:02:30]} 8. Nc3 {[%clk 0:02:56]}  a6 {[%clk 0:02:31]} 9. Qd2 {[%clk 0:02:54]}  b5 {[%clk 0:02:31]} 10. O-O-O {[%clk 0:02:54]}  b4 {[%clk 0:02:32]} 11. Na4 {[%clk 0:02:50]}  Qd5 {[%clk 0:02:32]} 12. b3 {[%clk 0:02:44]}  Bd7 {[%clk 0:02:32]} 13. Bc4 {[%clk 0:02:40]}  Qa5 {[%clk 0:02:30]} 14. d5 {[%clk 0:02:29]}  Bxa4 {[%clk 0:02:17]} 15. dxe6 {[%clk 0:02:22]}  fxe6 {[%clk 0:01:58]} 16. bxa4 {[%clk 0:02:21]}  Qxa4 {[%clk 0:01:41]} 17. Rhe1 {[%clk 0:02:12]}  Nd7 {[%clk 0:01:38]} 18. Rxe6 {[%clk 0:02:02]}  Qa3+ {[%clk 0:01:13]} 19. Kb1 {[%clk 0:02:01]}  O-O-O {[%clk 0:01:14]} 20. Rxa6 {[%clk 0:01:39]}  Qc3 {[%clk 0:01:13]} 21. Qd5 {[%clk 0:00:59]}  Nb8 {[%clk 0:01:09]} 22. Qxf5+ {[%clk 0:00:56]}  Rd7 {[%clk 0:01:09]} 23. Rxd7 {[%clk 0:00:47]}  Rf8 {[%clk 0:01:09]} 24. Rxc7+ {[%clk 0:00:29]}  Kxc7 {[%clk 0:01:08]} 25. Qa5+ {[%clk 0:00:29]}  Kd7 {[%clk 0:01:03]} 26. Ne5+ {[%clk 0:00:26]}  Qxe5 {[%clk 0:00:55]} 27. Qxe5 {[%clk 0:00:26]}  Nxa6 {[%clk 0:00:55]} 28. Bxa6 {[%clk 0:00:24]}  Bd6 {[%clk 0:00:55]} 29. Bb5+ {[%clk 0:00:24]}  Kc7 {[%clk 0:00:55]} 30. Qg7+ {[%clk 0:00:24]}  Kb6 {[%clk 0:00:55]} 31. Qh6 {[%clk 0:00:19]}  Kc5 {[%clk 0:00:52]} 32. Bd3 {[%clk 0:00:18]}  Re8 {[%clk 0:00:51]} 33. Kc1 {[%clk 0:00:16]}  Rf8 {[%clk 0:00:46]} 34. Qe3+ {[%clk 0:00:12]}  Kc6 {[%clk 0:00:46]} 35. Kd1 {[%clk 0:00:12]}  Bc5 {[%clk 0:00:46]} 36. Qe6+ {[%clk 0:00:11]}  Kc7 {[%clk 0:00:46]} 37. Be4 {[%clk 0:00:11]}  Bd6 {[%clk 0:00:44]} 38. Qc4+ {[%clk 0:00:11]}  Kd8 {[%clk 0:00:45]} 39. Ke2 {[%clk 0:00:11]}  Ke7 {[%clk 0:00:45]} 40. f3 {[%clk 0:00:11]}  Rf6 {[%clk 0:00:45]} 41. Qd5 {[%clk 0:00:11]}  Rh6 {[%clk 0:00:45]} 42. Qg5+ {[%clk 0:00:10]}  Rf6 {[%clk 0:00:45]} 43. Bxh7 {[%clk 0:00:10]}  Bf4 {[%clk 0:00:45]} 44. Qg7+ {[%clk 0:00:10]}  Rf7 {[%clk 0:00:44]} 45. Qxf7+ {[%clk 0:00:10]}  Kxf7 {[%clk 0:00:44]} 46. g3 {[%clk 0:00:11]}  Bd6 {[%clk 0:00:44]} 47. f4 {[%clk 0:00:11]}  Bc5 {[%clk 0:00:44]} 48. Kf3 {[%clk 0:00:11]}  Kg7 {[%clk 0:00:45]} 49. Bd3 {[%clk 0:00:11]}  Bd4 {[%clk 0:00:45]} 50. h4 {[%clk 0:00:11]}  b3 {[%clk 0:00:44]} 51. axb3 {[%clk 0:00:11]}  Bc3 {[%clk 0:00:44]} 1-0


[Site "https://www.chess.com"]

[Event "Titled Tuesday Blitz March 22 Late 2022"]
[White "Iskusnyh, Sergei"]
[Black "Weetik, Vjacheslav"]
[WhiteFideId "4120027"]
[BlackFideId "4153472"]
[WhiteElo "2492"]
[BlackElo "2469"]
[Result "1-0"]
[Round "04"]
[TimeControl "180+1"]
[Date "2022.03.22"]
[WhiteClock "0:00:58"]
[BlackClock "0:00:34"]

1. d4 {[%clk 0:03:00]}  Nf6 {[%clk 0:02:56]} 2. c4 {[%clk 0:03:00]}  g6 {[%clk 0:02:57]} 3. g3 {[%clk 0:03:00]}  Bg7 {[%clk 0:02:57]} 4. Bg2 {[%clk 0:03:00]}  O-O {[%clk 0:02:57]} 5. Nc3 {[%clk 0:03:00]}  d6 {[%clk 0:02:56]} 6. Nf3 {[%clk 0:03:01]}  Nc6 {[%clk 0:02:56]} 7. O-O {[%clk 0:03:01]}  a6 {[%clk 0:02:57]} 8. d5 {[%clk 0:02:42]}  Na5 {[%clk 0:02:56]} 9. b3 {[%clk 0:02:42]}  c5 {[%clk 0:02:56]} 10. dxc6 {[%clk 0:02:42]}  bxc6 {[%clk 0:02:49]} 11. Bg5 {[%clk 0:02:08]}  h6 {[%clk 0:02:46]} 12. Be3 {[%clk 0:02:07]}  Rb8 {[%clk 0:02:40]} 13. Rc1 {[%clk 0:02:06]}  c5 {[%clk 0:02:32]} 14. Nd5 {[%clk 0:01:53]}  Ng4 {[%clk 0:02:01]} 15. Bd2 {[%clk 0:01:50]}  Nc6 {[%clk 0:01:57]} 16. h3 {[%clk 0:01:45]}  Nge5 {[%clk 0:01:48]} 17. Nxe5 {[%clk 0:01:42]}  Nxe5 {[%clk 0:01:44]} 18. Bc3 {[%clk 0:01:42]}  Bb7 {[%clk 0:01:26]} 19. Qd2 {[%clk 0:01:40]}  e6 {[%clk 0:01:21]} 20. Ne3 {[%clk 0:01:19]}  Bxg2 {[%clk 0:01:12]} 21. Kxg2 {[%clk 0:01:20]}  Qc7 {[%clk 0:01:09]} 22. Rfd1 {[%clk 0:01:11]}  Rbd8 {[%clk 0:01:00]} 23. f3 {[%clk 0:01:07]}  Qb7 {[%clk 0:00:51]} 24. Ng4 {[%clk 0:01:01]}  Nc6 {[%clk 0:00:33]} 25. Bxg7 {[%clk 0:00:58]}  Kxg7 {[%clk 0:00:34]} 26. Qxh6+ {[%clk 0:00:58]} 1-0


[Site "https://www.chess.com"]

[Event "Titled Tuesday Blitz March 22 Late 2022"]
[White "Jacobson, Brandon"]
[Black "Palchuk, Andrii"]
[WhiteFideId "30901561"]
[BlackFideId "14176688"]
[WhiteElo "2362"]
[BlackElo "2319"]
[Result "1-0"]
[Round "04"]
[TimeControl "180+1"]
[Date "2022.03.22"]
[WhiteClock "0:02:37"]
[BlackClock "0:01:29"]

1. Nf3 {[%clk 0:03:00]}  Nf6 {[%clk 0:02:56]} 2. c4 {[%clk 0:03:00]}  b6 {[%clk 0:02:54]} 3. Nc3 {[%clk 0:03:00]}  Bb7 {[%clk 0:02:54]} 4. g3 {[%clk 0:03:01]}  c5 {[%clk 0:02:52]} 5. Bg2 {[%clk 0:03:01]}  e6 {[%clk 0:02:52]} 6. O-O {[%clk 0:03:02]}  Be7 {[%clk 0:02:52]} 7. Re1 {[%clk 0:03:02]}  d6 {[%clk 0:02:52]} 8. e4 {[%clk 0:03:03]}  O-O {[%clk 0:02:52]} 9. d4 {[%clk 0:03:03]}  cxd4 {[%clk 0:02:52]} 10. Nxd4 {[%clk 0:03:04]}  Qc8 {[%clk 0:02:50]} 11. Be3 {[%clk 0:03:02]}  Nbd7 {[%clk 0:02:46]} 12. Rc1 {[%clk 0:03:01]}  a6 {[%clk 0:02:32]} 13. f4 {[%clk 0:02:56]}  Qc7 {[%clk 0:02:18]} 14. g4 {[%clk 0:02:55]}  Rfd8 {[%clk 0:01:57]} 15. g5 {[%clk 0:02:55]}  Ne8 {[%clk 0:01:57]} 16. f5 {[%clk 0:02:53]}  Nf8 {[%clk 0:01:49]} 17. Qg4 {[%clk 0:02:45]}  Kh8 {[%clk 0:01:35]} 18. fxe6 {[%clk 0:02:36]}  fxe6 {[%clk 0:01:34]} 19. Nxe6 {[%clk 0:02:36]}  Nxe6 {[%clk 0:01:35]} 20. Qxe6 {[%clk 0:02:37]}  Bc8 {[%clk 0:01:32]} 21. Qf7 {[%clk 0:02:37]}  Bxg5 {[%clk 0:01:29]} 1-0


[Site "https://www.chess.com"]

[Event "Titled Tuesday Blitz March 22 Late 2022"]
[White "Janaszak, Dawid"]
[Black "Fier, Alexandr"]
[WhiteFideId "1119206"]
[BlackFideId "2107139"]
[WhiteElo "2199"]
[BlackElo "2571"]
[Result "1-0"]
[Round "04"]
[TimeControl "180+1"]
[Date "2022.03.22"]
[WhiteClock "0:00:20"]
[BlackClock "0:02:14"]

1. e4 {[%clk 0:03:00]}  Nf6 {[%clk 0:02:59]} 2. e5 {[%clk 0:02:59]}  Nd5 {[%clk 0:03:00]} 3. d4 {[%clk 0:02:58]}  d6 {[%clk 0:03:00]} 4. Nf3 {[%clk 0:02:58]}  g6 {[%clk 0:03:00]} 5. Be2 {[%clk 0:02:49]}  Bg7 {[%clk 0:03:00]} 6. O-O {[%clk 0:02:49]}  O-O {[%clk 0:03:00]} 7. exd6 {[%clk 0:02:39]}  cxd6 {[%clk 0:03:00]} 8. c3 {[%clk 0:02:34]}  Nc6 {[%clk 0:03:00]} 9. Re1 {[%clk 0:02:32]}  e5 {[%clk 0:02:59]} 10. dxe5 {[%clk 0:02:30]}  dxe5 {[%clk 0:03:00]} 11. Bb5 {[%clk 0:02:25]}  Re8 {[%clk 0:02:54]} 12. Na3 {[%clk 0:02:18]}  e4 {[%clk 0:02:48]} 13. Nd4 {[%clk 0:02:09]}  Bd7 {[%clk 0:02:48]} 14. Nxc6 {[%clk 0:02:06]}  bxc6 {[%clk 0:02:49]} 15. Bf1 {[%clk 0:01:52]}  h5 {[%clk 0:02:48]} 16. Nc4 {[%clk 0:01:51]}  Bg4 {[%clk 0:02:48]} 17. Qa4 {[%clk 0:01:41]}  Qd7 {[%clk 0:02:46]} 18. h3 {[%clk 0:01:38]}  Bf5 {[%clk 0:02:46]} 19. Ne3 {[%clk 0:01:30]}  Be6 {[%clk 0:02:38]} 20. Nxd5 {[%clk 0:01:24]}  cxd5 {[%clk 0:02:39]} 21. Bb5 {[%clk 0:01:23]}  Qe7 {[%clk 0:02:38]} 22. Bxe8 {[%clk 0:01:22]}  Rxe8 {[%clk 0:02:39]} 23. Be3 {[%clk 0:01:21]}  Rb8 {[%clk 0:02:30]} 24. Rab1 {[%clk 0:01:17]}  Rb7 {[%clk 0:02:30]} 25. Bd4 {[%clk 0:01:17]}  Bh6 {[%clk 0:02:30]} 26. b4 {[%clk 0:01:11]}  Bf4 {[%clk 0:02:30]} 27. Be3 {[%clk 0:01:04]}  Be5 {[%clk 0:02:28]} 28. Bd4 {[%clk 0:01:03]}  Bf4 {[%clk 0:02:28]} 29. Be3 {[%clk 0:01:03]}  Bb8 {[%clk 0:02:27]} 30. b5 {[%clk 0:00:53]}  Qh4 {[%clk 0:02:24]} 31. b6 {[%clk 0:00:41]}  Bxh3 {[%clk 0:02:24]} 32. Qe8+ {[%clk 0:00:39]}  Kh7 {[%clk 0:02:23]} 33. Bd4 {[%clk 0:00:38]}  f6 {[%clk 0:02:22]} 34. bxa7 {[%clk 0:00:35]}  Bh2+ {[%clk 0:02:22]} 35. Kf1 {[%clk 0:00:23]}  Qg4 {[%clk 0:02:21]} 36. Rxb7+ {[%clk 0:00:21]}  Kh6 {[%clk 0:02:22]} 37. Qh8+ {[%clk 0:00:20]}  Kg5 {[%clk 0:02:22]} 38. Qxf6+ {[%clk 0:00:21]}  Kh6 {[%clk 0:02:21]} 39. Be3+ {[%clk 0:00:21]}  Qg5 {[%clk 0:02:14]} 40. Bxg5# {[%clk 0:00:20]} 1-0


[Site "https://www.chess.com"]

[Event "Titled Tuesday Blitz March 22 Late 2022"]
[White "Kamsky, Gata"]
[Black "Jobava, Baadur"]
[WhiteFideId "2000024"]
[BlackFideId "13601520"]
[WhiteElo "2645"]
[BlackElo "2617"]
[Result "1-0"]
[Round "04"]
[TimeControl "180+1"]
[Date "2022.03.22"]
[WhiteClock "0:00:13"]
[BlackClock "0:00:06"]

1. d4 {[%clk 0:03:00]}  Nf6 {[%clk 0:02:57]} 2. Nf3 {[%clk 0:02:51]}  e6 {[%clk 0:02:56]} 3. Bf4 {[%clk 0:02:49]}  b6 {[%clk 0:02:52]} 4. e3 {[%clk 0:02:48]}  Bb7 {[%clk 0:02:52]} 5. a4 {[%clk 0:02:45]}  Nc6 {[%clk 0:02:47]} 6. Nbd2 {[%clk 0:02:41]}  h6 {[%clk 0:02:45]} 7. h3 {[%clk 0:02:39]}  Bd6 {[%clk 0:02:44]} 8. Ne5 {[%clk 0:02:31]}  O-O {[%clk 0:02:40]} 9. Be2 {[%clk 0:02:27]}  Be7 {[%clk 0:02:31]} 10. Bf3 {[%clk 0:02:16]}  d5 {[%clk 0:02:16]} 11. Nxc6 {[%clk 0:02:11]}  Bxc6 {[%clk 0:02:16]} 12. O-O {[%clk 0:02:07]}  a5 {[%clk 0:02:10]} 13. c4 {[%clk 0:01:59]}  Qd7 {[%clk 0:02:10]} 14. b3 {[%clk 0:01:56]}  Bb7 {[%clk 0:02:06]} 15. Rc1 {[%clk 0:01:53]}  Rac8 {[%clk 0:02:05]} 16. Be5 {[%clk 0:01:50]}  Rfd8 {[%clk 0:02:03]} 17. Qc2 {[%clk 0:01:30]}  c5 {[%clk 0:01:58]} 18. Qb2 {[%clk 0:01:26]}  Ba6 {[%clk 0:01:16]} 19. Rfd1 {[%clk 0:01:23]}  Qe8 {[%clk 0:01:07]} 20. cxd5 {[%clk 0:01:13]}  exd5 {[%clk 0:01:03]} 21. Nb1 {[%clk 0:01:09]}  Qf8 {[%clk 0:00:55]} 22. Be2 {[%clk 0:01:00]}  Bxe2 {[%clk 0:00:46]} 23. Qxe2 {[%clk 0:01:00]}  Ne4 {[%clk 0:00:46]} 24. dxc5 {[%clk 0:00:39]}  bxc5 {[%clk 0:00:44]} 25. Nc3 {[%clk 0:00:37]}  Nxc3 {[%clk 0:00:37]} 26. Bxc3 {[%clk 0:00:37]}  Ra8 {[%clk 0:00:34]} 27. Qf3 {[%clk 0:00:37]}  d4 {[%clk 0:00:26]} 28. exd4 {[%clk 0:00:37]}  cxd4 {[%clk 0:00:25]} 29. Bxd4 {[%clk 0:00:36]}  Bb4 {[%clk 0:00:21]} 30. Be3 {[%clk 0:00:34]}  Qe7 {[%clk 0:00:19]} 31. Qg4 {[%clk 0:00:32]}  Qf6 {[%clk 0:00:12]} 32. Bd4 {[%clk 0:00:31]}  Qg5 {[%clk 0:00:12]} 33. Qxg5 {[%clk 0:00:30]}  hxg5 {[%clk 0:00:13]} 34. Be3 {[%clk 0:00:31]}  f6 {[%clk 0:00:13]} 35. Kf1 {[%clk 0:00:31]}  Kf7 {[%clk 0:00:13]} 36. Ke2 {[%clk 0:00:31]}  Ke6 {[%clk 0:00:13]} 37. Rc6+ {[%clk 0:00:30]}  Kf5 {[%clk 0:00:13]} 38. Rxd8 {[%clk 0:00:27]}  Rxd8 {[%clk 0:00:13]} 39. Rc7 {[%clk 0:00:25]}  Kg6 {[%clk 0:00:13]} 40. Rc2 {[%clk 0:00:23]}  Rd7 {[%clk 0:00:13]} 41. Bd2 {[%clk 0:00:20]}  Bxd2 {[%clk 0:00:12]} 42. Rxd2 {[%clk 0:00:20]}  Rb7 {[%clk 0:00:12]} 43. Rd3 {[%clk 0:00:20]}  Rb4 {[%clk 0:00:13]} 44. Kd2 {[%clk 0:00:20]}  g4 {[%clk 0:00:09]} 45. hxg4 {[%clk 0:00:19]}  Kg5 {[%clk 0:00:09]} 46. Rg3 {[%clk 0:00:18]}  Kf4 {[%clk 0:00:08]} 47. Kc3 {[%clk 0:00:18]}  g5 {[%clk 0:00:08]} 48. Rd3 {[%clk 0:00:17]}  Rb8 {[%clk 0:00:05]} 49. Rf3+ {[%clk 0:00:17]}  Kxg4 {[%clk 0:00:03]} 50. Rxf6 {[%clk 0:00:17]}  Rc8+ {[%clk 0:00:04]} 51. Kb2 {[%clk 0:00:17]}  Re8 {[%clk 0:00:04]} 52. Ka3 {[%clk 0:00:17]}  Re1 {[%clk 0:00:03]} 53. Ra6 {[%clk 0:00:15]}  Ra1+ {[%clk 0:00:03]} 54. Kb2 {[%clk 0:00:15]}  Rf1 {[%clk 0:00:04]} 55. f3+ {[%clk 0:00:15]}  Kh4 {[%clk 0:00:04]} 56. Rxa5 {[%clk 0:00:14]}  Rf2+ {[%clk 0:00:05]} 57. Kc3 {[%clk 0:00:14]}  Rxg2 {[%clk 0:00:06]} 58. Rf5 {[%clk 0:00:13]}  Ra2 {[%clk 0:00:06]} 59. Kb4 {[%clk 0:00:12]}  Ra1 {[%clk 0:00:04]} 60. a5 {[%clk 0:00:13]}  Kh5 {[%clk 0:00:04]} 61. Kb5 {[%clk 0:00:13]}  Kg6 {[%clk 0:00:05]} 62. Rd5 {[%clk 0:00:13]}  Rf1 {[%clk 0:00:04]} 63. Rd3 {[%clk 0:00:13]}  Ra1 {[%clk 0:00:04]} 64. b4 {[%clk 0:00:12]}  Kf5 {[%clk 0:00:05]} 65. a6 {[%clk 0:00:12]}  Kf4 {[%clk 0:00:06]} 66. Kb6 {[%clk 0:00:13]} 1-0


[Site "https://www.chess.com"]